Workbook

Sheet 10-11
A1: Достижение обучающимися планируемых предметных результатов освоения образовательной программы среднего общего образования по итогам 2020-2021 учебного года
A3: № | B3: Наименование школы | C3: Класс | D3: Кол-во учащихся | E3: Выше баз.ур. ("4/5") | F3: Доля, % | G3: Баз.ур ("3") | H3: Доля, %
A4: 1 | B4: МБОУ Алексеевская СОШ №1 | C4: 10 | D4: 13 | E4: =D4-G4 -> 13 | F4: =E4/D4*100% -> 100% | G4: 0 | H4: =G4/D4*100% -> 0%
B5: МБОУ Алексеевская СОШ №1 | C5: 11 | D5: 26 | E5: =D5-G5 -> 21 | F5: =E5/D5*100% -> 81% | G5: 5 | H5: =G5/D5*100% -> 19%
B6: МБОУ Алексеевская СОШ №1 | C6: ИТОГО | D6: =SUM(D4:D5) -> 39 | E6: =SUM(E4:E5) -> 34 | F6: 87% | G6: =SUM(G4:G5) -> 5 | H6: 13%
A8: № | B8: Наименование школы | C8: Класс | D8: Кол-во учащихся | E8: Выше баз.ур. ("4/5") | F8: Доля, % | G8: Баз.ур ("3") | H8: Доля, %
A9: 2 | B9: МБОУ Алексеевская СОШ №2 | C9: 10 | D9: 14 | E9: =D9-G9 -> 10 | F9: =E9/D9*100% -> 71% | G9: 4 | H9: =G9/D9*100% -> 29%
B10: МБОУ Алексеевская СОШ №2 | C10: 11 | D10: 9 | E10: =D10-G10 -> 9 | F10: =E10/D10*100% -> 100% | G10: 0 | H10: =G10/D10*100% -> 0%
B11: МБОУ Алексеевская СОШ №2 | C11: ИТОГО | D11: =SUM(D9:D10) -> 23 | E11: =SUM(E9:E10) -> 19 | F11: 83% | G11: =SUM(G9:G10) -> 4 | H11: 17%
A13: № | B13: Наименование школы | C13: Класс | D13: Кол-во учащихся | E13: Выше баз.ур. ("4/5") | F13: Доля, % | G13: Баз.ур ("3") | H13: Доля, %
A14: 3 | B14: МБОУ АСОШ №3 им.Г.С.Боровикова | C14: 10 | D14: 19 | E14: =D14-G14 -> 14 | F14: =E14/D14*100% -> 74% | G14: 5 | H14: =G14/D14*100% -> 26%
B15: МБОУ АСОШ №3 им.Г.С.Боровикова | C15: 11 | D15: 18 | E15: =D15-G15 -> 18 | F15: =E15/D15*100% -> 100% | H15: =G15/D15*100% -> 0%
B16: МБОУ АСОШ №3 им.Г.С.Боровикова | C16: ИТОГО | D16: =SUM(D14:D15) -> 37 | E16: =SUM(E14:E15) -> 32 | F16: 86% | G16: =SUM(G14:G15) -> 5 | H16: 14%
A18: № | B18: Наименование школы | C18: Класс | D18: Кол-во учащихся | E18: Выше баз.ур. ("4/5") | F18: Доля, % | G18: Баз.ур ("3") | H18: Доля, %
A19: 4 | B19: МБОУ "Билярская СОШ" | C19: 10 | D19: 10 | E19: =D19-G19 -> 7 | F19: =E19/D19*100% -> 70% | G19: 3 | H19: =G19/D19*100% -> 30%
B20: МБОУ "Билярская СОШ" | C20: 11 | D20: 15 | E20: =D20-G20 -> 14 | F20: =E20/D20*100% -> 93% | G20: 1 | H20: =G20/D20*100% -> 7%
B21: МБОУ "Билярская СОШ" | C21: ИТОГО | D21: =SUM(D19:D20) -> 25 | E21: =SUM(E19:E20) -> 21 | F21: 84% | G21: =SUM(G19:G20) -> 4 | H21: 16%
A23: № | B23: Наименование школы | C23: Класс | D23: Кол-во учащихся | E23: Выше баз.ур. ("4/5") | F23: Доля, % | G23: Баз.ур ("3") | H23: Доля, %
A24: 8 | B24: МБОУ Куркульская СОШ | C24: 10 | D24: 3 | E24: =D24-G24 -> 2 | F24: =E24/D24*100% -> 67% | G24: 1 | H24: =G24/D24*100% -> 33%
B25: МБОУ Куркульская СОШ | C25: 11 | D25: 3 | E25: =D25-G25 -> 3 | F25: =E25/D25*100% -> 100% | G25: 0 | H25: =G25/D25*100% -> 0%
B26: МБОУ Куркульская СОШ | C26: ИТОГО | D26: =SUM(D24:D25) -> 6 | E26: =SUM(E24:E25) -> 5 | F26: 83% | G26: =SUM(G24:G25) -> 1 | H26: 17%
A28: № | B28: Наименование школы | C28: Класс | D28: Кол-во учащихся | E28: Выше баз.ур. ("4/5") | F28: Доля, % | G28: Баз.ур ("3") | H28: Доля, %
A29: 12 | B29: МБОУ Мокрокурналинская СОШ | C29: 10 | D29: 4 | E29: =D29-G29 -> 4 | F29: =E29/D29*100% -> 100% | G29: 0 | H29: =G29/D29*100% -> 0%
B30: МБОУ Мокрокурналинская СОШ | C30: 11 | D30: 6 | E30: =D30-G30 -> 6 | F30: =E30/D30*100% -> 100% | G30: 0 | H30: =G30/D30*100% -> 0%
B31: МБОУ Мокрокурналинская СОШ | C31: ИТОГО | D31: =SUM(D29:D30) -> 10 | E31: =SUM(E29:E30) -> 10 | F31: 100% | G31: =SUM(G29:G30) -> 0 | H31: 0%
A33: № | B33: Наименование школы | C33: Класс | D33: Кол-во учащихся | E33: Выше баз.ур. ("4/5") | F33: Доля, % | G33: Баз.ур ("3") | H33: Доля, %
A34: 15 | B34: МБОУ Родниковская СОШ | C34: 10 | D34: 2 | E34: =D34-G34 -> 2 | F34: =E34/D34*100% -> 100% | G34: 0 | H34: =G34/D34*100% -> 0%
B35: МБОУ Родниковская СОШ | C35: 11 | D35: 2 | E35: =D35-G35 -> 0 | F35: =E35/D35*100% -> 0% | G35: 2 | H35: =G35/D35*100% -> 100%
B36: МБОУ Родниковская СОШ | C36: ИТОГО | D36: =SUM(D34:D35) -> 4 | E36: =SUM(E34:E35) -> 2 | F36: 50% | G36: =SUM(G34:G35) -> 2 | H36: 50%
A38: № | B38: Наименование школы | C38: Класс | D38: Кол-во учащихся | E38: Выше баз.ур. ("4/5") | F38: Доля, % | G38: Баз.ур ("3") | H38: Доля, %
A39: 16 | B39: МБОУ Ромодановская СОШ | C39: 10 | D39: 2 | E39: =D39-G39 -> 2 | F39: =E39/D39*100% -> 100% | G39: 0 | H39: =G39/D39*100% -> 0%
B40: МБОУ Ромодановская СОШ | C40: 11 | D40: 3 | E40: =D40-G40 -> 2 | F40: =E40/D40*100% -> 67% | G40: 1 | H40: =G40/D40*100% -> 33%
B41: МБОУ Ромодановская СОШ | C41: ИТОГО | D41: =SUM(D39:D40) -> 5 | E41: =SUM(E39:E40) -> 4 | F41: 80% | G41: =SUM(G39:G40) -> 1 | H41: 20%
A43: № | B43: Наименование школы | C43: Класс | D43: Кол-во учащихся | E43: Выше баз.ур. ("4/5") | F43: Доля, % | G43: Баз.ур ("3") | H43: Доля, %
A44: 18 | B44: МБОУ Среднетиганская СОШ | C44: 10 | D44: 2 | E44: =D44-G44 -> 2 | F44: =E44/D44*100% -> 100% | G44: 0 | H44: =G44/D44*100% -> 0%
B45: МБОУ Среднетиганская СОШ | C45: 11 | D45: 2 | E45: =D45-G45 -> 2 | F45: =E45/D45*100% -> 100% | G45: 0 | H45: =G45/D45*100% -> 0%
B46: МБОУ Среднетиганская СОШ | C46: ИТОГО | D46: =SUM(D44:D45) -> 4 | E46: =SUM(E44:E45) -> 4 | F46: 100% | G46: =SUM(G44:G45) -> 0 | H46: 0%
B48: По району: | D48: =SUM(D6+D11+D16+D21+D26+D31+D36+D41+D46) -> 153 | E48: =SUM(E6+E11+E16+E21+E26+E31+E36+E41+E46) -> 131 | F48: =E48/D48*100% -> 86% | G48: 22 | H48: =G48/D48*100% -> 14%
B50: Заместитель начальника по учебно-методической работе МКУ "Отдел образования Алексеевского муниципального района Республики Татарстан" | F50: В.В.Егорова

Sheet 5-9
A1: Достижение обучающимися планируемых предметных результатов освоения образовательной программы основного общего образования по итогам 2020-2021 учебного года
A2: № | B2: Наименование школы | C2: Класс | D2: Кол-во учащихся | E2: Выше баз.ур. ("4/5") | F2: Доля, % | G2: Баз.ур ("3") | H2: Доля, %
A3: 1 | B3: МБОУ Алексеевская СОШ №1 | C3: 5 | D3: 60 | E3: =D3-G3 -> 39 | F3: =E3/D3*100% -> 65% | G3: 21 | H3: =G3/D3*100% -> 35%
B4: МБОУ Алексеевская СОШ №1 | C4: 6 | D4: 70 | E4: =D4-G4 -> 34 | F4: =E4/D4*100% -> 49% | G4: 36 | H4: =G4/D4*100% -> 51%
B5: МБОУ Алексеевская СОШ №1 | C5: 7 | D5: 78 | E5: 41 | F5: 53% | G5: 37 | H5: 47%
B6: МБОУ Алексеевская СОШ №1 | C6: 8 | D6: 72 | E6: 40 | F6: 56% | G6: 32 | H6: 44%
B7: МБОУ Алексеевская СОШ №1 | C7: 9 | D7: 52 | E7: 27 | F7: 52% | G7: 25 | H7: 48%
B8: МБОУ Алексеевская СОШ №1 | C8: ИТОГО | D8: =SUM(D3:D7) -> 332 | E8: 181 | F8: 55% | G8: =SUM(G3:G7) -> 151 | H8: 45%
A10: № | B10: Наименование школы | C10: Класс | D10: Кол-во учащихся | E10: Выше баз.ур. ("4/5") | F10: Доля, % | G10: Баз.ур ("3") | H10: Доля, %
A11: 2 | B11: МБОУ Алексеевская СОШ №2 | C11: 5 | D11: 70 | E11: =D11-G11 -> 41 | F11: =E11/D11*100% -> 59% | G11: 29 | H11: =G11/D11*100% -> 41%
B12: МБОУ Алексеевская СОШ №2 | C12: 6 | D12: 80 | E12: =D12-G12 -> 43 | F12: =E12/D12*100% -> 54% | G12: 37 | H12: =G12/D12*100% -> 46%
B13: МБОУ Алексеевская СОШ №2 | C13: 7 | D13: 59 | E13: 25 | F13: 42% | G13: 34 | H13: 58%
B14: МБОУ Алексеевская СОШ №2 | C14: 8 | D14: 50 | E14: 27 | F14: 54% | G14: 23 | H14: 46%
B15: МБОУ Алексеевская СОШ №2 | C15: 9 | D15: 44 | E15: 21 | F15: 48% | G15: 23 | H15: 52%
B16: МБОУ Алексеевская СОШ №2 | C16: ИТОГО | D16: =SUM(D11:D15) -> 303 | E16: 157 | F16: 52% | G16: =SUM(G11:G15) -> 146 | H16: 48%
A18: № | B18: Наименование школы | C18: Класс | D18: Кол-во учащихся | E18: Выше баз.ур. ("4/5") | F18: Доля, % | G18: Баз.ур ("3") | H18: Доля, %
A19: 3 | B19: МБОУ АСОШ №3 им.Г.С.Боровикова | C19: 5 | D19: 59 | E19: =D19-G19 -> 38 | F19: =E19/D19*100% -> 64% | G19: 21 | H19: =G19/D19*100% -> 36%
B20: МБОУ АСОШ №3 им.Г.С.Боровикова | C20: 6 | D20: 30 | E20: =D20-G20 -> 18 | F20: =E20/D20*100% -> 60% | G20: 12 | H20: =G20/D20*100% -> 40%
B21: МБОУ АСОШ №3 им.Г.С.Боровикова | C21: 7 | D21: 29 | E21: 21 | F21: 72% | G21: 8 | H21: 28%
B22: МБОУ АСОШ №3 им.Г.С.Боровикова | C22: 8 | D22: 29 | E22: 15 | F22: 52% | G22: 14 | H22: 48%
B23: МБОУ АСОШ №3 им.Г.С.Боровикова | C23: 9 | D23: 43 | E23: 22 | F23: 51% | G23: 21 | H23: 49%
B24: МБОУ АСОШ №3 им.Г.С.Боровикова | C24: ИТОГО | D24: =SUM(D19:D23) -> 190 | E24: 114 | F24: 60% | G24: =SUM(G19:G23) -> 76 | H24: 40%
A26: № | B26: Наименование школы | C26: Класс | D26: Кол-во учащихся | E26: Выше баз.ур. ("4/5") | F26: Доля, % | G26: Баз.ур ("3") | H26: Доля, %
A27: 4 | B27: МБОУ "Билярская СОШ" | C27: 5 | D27: 27 | E27: =D27-G27 -> 13 | F27: =E27/D27*100% -> 48% | G27: 14 | H27: =G27/D27*100% -> 52%
B28: МБОУ "Билярская СОШ" | C28: 6 | D28: 25 | E28: =D28-G28 -> 14 | F28: =E28/D28*100% -> 56% | G28: 11 | H28: =G28/D28*100% -> 44%
B29: МБОУ "Билярская СОШ" | C29: 7 | D29: 33 | E29: 13 | F29: 39% | G29: 20 | H29: 61%
B30: МБОУ "Билярская СОШ" | C30: 8 | D30: 31 | E30: 8 | F30: 26% | G30: 23 | H30: 74%
B31: МБОУ "Билярская СОШ" | C31: 9 | D31: 20 | E31: 10 | F31: 50% | G31: 10 | H31: 50%
B32: МБОУ "Билярская СОШ" | C32: ИТОГО | D32: =SUM(D27:D31) -> 136 | E32: 58 | F32: 43% | G32: =SUM(G27:G31) -> 78 | H32: 57%
A34: № | B34: Наименование школы | C34: Класс | D34: Кол-во учащихся | E34: Выше баз.ур. ("4/5") | F34: Доля, % | G34: Баз.ур ("3") | H34: Доля, %
A35: 5 | B35: МБОУ Большеполянская ООШ | C35: 5 | D35: 4 | E35: =D35-G35 -> 4 | F35: =E35/D35*100% -> 100% | G35: 0 | H35: =G35/D35*100% -> 0%
B36: МБОУ Большеполянская ООШ | C36: 6 | D36: 5 | E36: =D36-G36 -> 2 | F36: =E36/D36*100% -> 40% | G36: 3 | H36: =G36/D36*100% -> 60%
B37: МБОУ Большеполянская ООШ | C37: 7 | D37: 8 | E37: 3 | F37: 38% | G37: 5 | H37: 63%
B38: МБОУ Большеполянская ООШ | C38: 8 | D38: 4 | E38: 0 | F38: 0% | G38: 4 | H38: 100%
B39: МБОУ Большеполянская ООШ | C39: 9 | D39: 8 | E39: 5 | F39: 63% | G39: 3 | H39: 38%
B40: МБОУ Большеполянская ООШ | C40: ИТОГО | D40: =SUM(D35:D39) -> 29 | E40: 14 | F40: 48% | G40: =SUM(G35:G39) -> 15 | H40: 52%
A42: № | B42: Наименование школы | C42: Класс | D42: Кол-во учащихся | E42: Выше баз.ур. ("4/5") | F42: Доля, % | G42: Баз.ур ("3") | H42: Доля, %
A43: 6 | B43: МБОУ "Большетиганская ООШ" | C43: 5 | D43: 7 | E43: =D43-G43 -> 4 | F43: =E43/D43*100% -> 57% | G43: 3 | H43: =G43/D43*100% -> 43%
B44: МБОУ "Большетиганская ООШ" | C44: 6 | D44: 3 | E44: =D44-G44 -> 1 | F44: =E44/D44*100% -> 33% | G44: 2 | H44: =G44/D44*100% -> 67%
B45: МБОУ "Большетиганская ООШ" | C45: 7 | D45: 3 | E45: 0 | F45: 0% | G45: 3 | H45: 100%
B46: МБОУ "Большетиганская ООШ" | C46: 8 | D46: 3 | E46: 2 | F46: 67% | G46: 1 | H46: 33%
B47: МБОУ "Большетиганская ООШ" | C47: 9 | D47: 11 | E47: 5 | F47: 45% | G47: 6 | H47: 55%
B48: МБОУ "Большетиганская ООШ" | C48: ИТОГО | D48: =SUM(D43:D47) -> 27 | E48: 12 | F48: 44% | G48: =SUM(G43:G47) -> 15 | H48: 56%
A50: № | B50: Наименование школы | C50: Класс | D50: Кол-во учащихся | E50: Выше баз.ур. ("4/5") | F50: Доля, % | G50: Баз.ур ("3") | H50: Доля, %
A51: 7 | B51: МБОУ "Ерыклинская ООШ" | C51: 5 | D51: 3 | E51: =D51-G51 -> 1 | F51: =E51/D51*100% -> 33% | G51: 2 | H51: =G51/D51*100% -> 67%
B52: МБОУ "Ерыклинская ООШ" | C52: 6 | D52: 4 | E52: =D52-G52 -> 3 | F52: =E52/D52*100% -> 75% | G52: 1 | H52: =G52/D52*100% -> 25%
B53: МБОУ "Ерыклинская ООШ" | C53: 7 | D53: 6 | E53: 4 | F53: 67% | G53: 2 | H53: 33%
B54: МБОУ "Ерыклинская ООШ" | C54: 8 | D54: 6 | E54: 3 | F54: 50% | G54: 3 | H54: 50%
B55: МБОУ "Ерыклинская ООШ" | C55: 9 | D55: 4 | E55: 4 | F55: 100% | G55: 0 | H55: 0%
B56: МБОУ "Ерыклинская ООШ" | C56: ИТОГО | D56: =SUM(D51:D55) -> 23 | E56: 15 | F56: 65% | G56: =SUM(G51:G55) -> 8 | H56: 35%
A58: № | B58: Наименование школы | C58: Класс | D58: Кол-во учащихся | E58: Выше баз.ур. ("4/5") | F58: Доля, % | G58: Баз.ур ("3") | H58: Доля, %
A59: 8 | B59: МБОУ Куркульская СОШ | C59: 5 | D59: 8 | E59: =D59-G59 -> 4 | F59: =E59/D59*100% -> 50% | G59: 4 | H59: =G59/D59*100% -> 50%
B60: МБОУ Куркульская СОШ | C60: 6 | D60: 3 | E60: =D60-G60 -> 1 | F60: =E60/D60*100% -> 33% | G60: 2 | H60: =G60/D60*100% -> 67%
B61: МБОУ Куркульская СОШ | C61: 7 | D61: 2 | E61: 2 | F61: 100% | G61: 0 | H61: 0%
B62: МБОУ Куркульская СОШ | C62: 8 | D62: 6 | E62: 2 | F62: 33% | G62: 4 | H62: 67%
B63: МБОУ Куркульская СОШ | C63: 9 | D63: 0 | E63: 0 | F63: 0% | G63: 0 | H63: 0%
B64: МБОУ Куркульская СОШ | C64: ИТОГО | D64: =SUM(D59:D63) -> 19 | E64: 9 | F64: 47% | G64: =SUM(G59:G63) -> 10 | H64: 53%
A66: № | B66: Наименование школы | C66: Класс | D66: Кол-во учащихся | E66: Выше баз.ур. ("4/5") | F66: Доля, % | G66: Баз.ур ("3") | H66: Доля, %
A67: 9 | B67: МБОУ "Краснобаранская ООШ" | C67: 5 | D67: 3 | E67: =D67-G67 -> 2 | F67: =E67/D67*100% -> 67% | G67: 1 | H67: =G67/D67*100% -> 33%
B68: МБОУ "Краснобаранская ООШ" | C68: 6 | D68: 3 | E68: =D68-G68 -> 2 | F68: =E68/D68*100% -> 67% | G68: 1 | H68: =G68/D68*100% -> 33%
B69: МБОУ "Краснобаранская ООШ" | C69: 7 | D69: 2 | E69: 1 | F69: 50% | G69: 1 | H69: 50%
B70: МБОУ "Краснобаранская ООШ" | C70: 8 | D70: 2 | E70: 0 | F70: 0% | G70: 2 | H70: 100%
B71: МБОУ "Краснобаранская ООШ" | C71: 9 | D71: 4 | E71: 2 | F71: 50% | G71: 2 | H71: 50%
B72: МБОУ "Краснобаранская ООШ" | C72: ИТОГО | D72: =SUM(D67:D71) -> 14 | E72: 7 | F72: 50% | G72: =SUM(G67:G71) -> 7 | H72: 50%
A74: № | B74: Наименование школы | C74: Класс | D74: Кол-во учащихся | E74: Выше баз.ур. ("4/5") | F74: Доля, % | G74: Баз.ур ("3") | H74: Доля, %
A75: 10 | B75: МБОУ "Лебединская ООШ" | C75: 5 | D75: 4 | E75: =D75-G75 -> 3 | F75: =E75/D75*100% -> 75% | G75: 1 | H75: =G75/D75*100% -> 25%
B76: МБОУ "Лебединская ООШ" | C76: 6 | D76: 4 | E76: =D76-G76 -> 2 | F76: =E76/D76*100% -> 50% | G76: 2 | H76: =G76/D76*100% -> 50%
B77: МБОУ "Лебединская ООШ" | C77: 7 | D77: 4 | E77: 2 | F77: 50% | G77: 2 | H77: 50%
B78: МБОУ "Лебединская ООШ" | C78: 8 | D78: 5 | E78: 3 | F78: 60% | G78: 2 | H78: 40%
B79: МБОУ "Лебединская ООШ" | C79: 9 | D79: 2 | E79: 1 | F79: 50% | G79: 1 | H79: 50%
B80: МБОУ "Лебединская ООШ" | C80: ИТОГО | D80: =SUM(D75:D79) -> 19 | E80: 11 | F80: 58% | G80: =SUM(G75:G79) -> 8 | H80: 42%
A82: № | B82: Наименование школы | C82: Класс | D82: Кол-во учащихся | E82: Выше баз.ур. ("4/5") | F82: Доля, % | G82: Баз.ур ("3") | H82: Доля, %
A83: 11 | B83: МБОУ "Левашевская ООШ" | C83: 5 | D83: 8 | E83: =D83-G83 -> 6 | F83: =E83/D83*100% -> 75% | G83: 2 | H83: =G83/D83*100% -> 25%
B84: МБОУ "Левашевская ООШ" | C84: 6 | D84: 7 | E84: =D84-G84 -> 6 | F84: =E84/D84*100% -> 86% | G84: 1 | H84: =G84/D84*100% -> 14%
B85: МБОУ "Левашевская ООШ" | C85: 7 | D85: 5 | E85: 2 | F85: 40% | G85: 3 | H85: 60%
B86: МБОУ "Левашевская ООШ" | C86: 8 | D86: 8 | E86: 4 | F86: 50% | G86: 4 | H86: 50%
B87: МБОУ "Левашевская ООШ" | C87: 9 | D87: 6 | E87: 5 | F87: 83% | G87: 1 | H87: 17%
B88: МБОУ "Левашевская ООШ" | C88: ИТОГО | D88: =SUM(D83:D87) -> 34 | E88: 23 | F88: 68% | G88: =SUM(G83:G87) -> 11 | H88: 32%
A90: № | B90: Наименование школы | C90: Класс | D90: Кол-во учащихся | E90: Выше баз.ур. ("4/5") | F90: Доля, % | G90: Баз.ур ("3") | H90: Доля, %
A91: 12 | B91: МБОУ Мокрокурналинская СОШ | C91: 5 | D91: 13 | E91: =D91-G91 -> 9 | F91: =E91/D91*100% -> 69% | G91: 4 | H91: =G91/D91*100% -> 31%
B92: МБОУ Мокрокурналинская СОШ | C92: 6 | D92: 12 | E92: =D92-G92 -> 4 | F92: =E92/D92*100% -> 33% | G92: 8 | H92: =G92/D92*100% -> 67%
B93: МБОУ Мокрокурналинская СОШ | C93: 7 | D93: 8 | E93: 2 | F93: 25% | G93: 6 | H93: 75%
B94: МБОУ Мокрокурналинская СОШ | C94: 8 | D94: 10 | E94: 5 | F94: 50% | G94: 5 | H94: 50%
B95: МБОУ Мокрокурналинская СОШ | C95: 9 | D95: 7 | E95: 2 | F95: 29% | G95: 5 | H95: 71%
B96: МБОУ Мокрокурналинская СОШ | C96: ИТОГО | D96: =SUM(D91:D95) -> 50 | E96: 22 | F96: 44% | G96: =SUM(G91:G95) -> 28 | H96: 56%
A98: № | B98: Наименование школы | C98: Класс | D98: Кол-во учащихся | E98: Выше баз.ур. ("4/5") | F98: Доля, % | G98: Баз.ур ("3") | H98: Доля, %
A99: 13 | B99: МБОУ Подлесношенталинская ООШ | C99: 5 | D99: 3 | E99: =D99-G99 -> 3 | F99: =E99/D99*100% -> 100% | G99: 0 | H99: =G99/D99*100% -> 0%
B100: МБОУ Подлесношенталинская ООШ | C100: 6 | D100: 2 | E100: =D100-G100 -> 1 | F100: =E100/D100*100% -> 50% | G100: 1 | H100: =G100/D100*100% -> 50%
B101: МБОУ Подлесношенталинская ООШ | C101: 7 | D101: 6 | E101: 2 | F101: 33% | G101: 4 | H101: 67%
B102: МБОУ Подлесношенталинская ООШ | C102: 8 | D102: 4 | E102: 3 | F102: 75% | G102: 1 | H102: 25%
B103: МБОУ Подлесношенталинская ООШ | C103: 9 | D103: 2 | E103: 0 | F103: 0% | G103: 2 | H103: 100%
B104: МБОУ Подлесношенталинская ООШ | C104: ИТОГО | D104: =SUM(D99:D103) -> 17 | E104: 9 | F104: 53% | G104: =SUM(G99:G103) -> 8 | H104: 47%
A106: № | B106: Наименование школы | C106: Класс | D106: Кол-во учащихся | E106: Выше баз.ур. ("4/5") | F106: Доля, % | G106: Баз.ур ("3") | H106: Доля, %
A107: 14 | B107: МБОУ Реченская ООШ | C107: 5 | D107: 5 | E107: =D107-G107 -> 3 | F107: =E107/D107*100% -> 60% | G107: 2 | H107: =G107/D107*100% -> 40%
B108: МБОУ Реченская ООШ | C108: 6 | D108: 2 | E108: =D108-G108 -> 0 | F108: =E108/D108*100% -> 0% | G108: 2 | H108: =G108/D108*100% -> 100%
B109: МБОУ Реченская ООШ | C109: 7 | D109: 1 | E109: 1 | F109: 100% | G109: 0 | H109: 0%
B110: МБОУ Реченская ООШ | C110: 8 | D110: 6 | E110: 2 | F110: 33% | G110: 4 | H110: 67%
B111: МБОУ Реченская ООШ | C111: 9 | D111: 1 | E111: 1 | F111: 100% | G111: 0 | H111: 0%
B112: МБОУ Реченская ООШ | C112: ИТОГО | D112: =SUM(D107:D111) -> 15 | E112: 7 | F112: 47% | G112: =SUM(G107:G111) -> 8 | H112: 53%
A114: № | B114: Наименование школы | C114: Класс | D114: Кол-во учащихся | E114: Выше баз.ур. ("4/5") | F114: Доля, % | G114: Баз.ур ("3") | H114: Доля, %
A115: 15 | B115: МБОУ Родниковская СОШ | C115: 5 | D115: 3 | E115: =D115-G115 -> 3 | F115: =E115/D115*100% -> 100% | G115: 0 | H115: =G115/D115*100% -> 0%
B116: МБОУ Родниковская СОШ | C116: 6 | D116: 5 | E116: =D116-G116 -> 3 | F116: =E116/D116*100% -> 60% | G116: 2 | H116: =G116/D116*100% -> 40%
B117: МБОУ Родниковская СОШ | C117: 7 | D117: 3 | E117: 3 | F117: 100% | G117: 0 | H117: 0%
B118: МБОУ Родниковская СОШ | C118: 8 | D118: 4 | E118: 2 | F118: 50% | G118: 2 | H118: 50%
B119: МБОУ Родниковская СОШ | C119: 9 | D119: 4 | E119: 2 | F119: 50% | G119: 2 | H119: 50%
B120: МБОУ Родниковская СОШ | C120: ИТОГО | D120: =SUM(D115:D119) -> 19 | E120: 13 | F120: 68% | G120: =SUM(G115:G119) -> 6 | H120: 32%
A122: № | B122: Наименование школы | C122: Класс | D122: Кол-во учащихся | E122: Выше баз.ур. ("4/5") | F122: Доля, % | G122: Баз.ур ("3") | H122: Доля, %
A123: 16 | B123: МБОУ Ромодановская СОШ | C123: 5 | D123: 6 | E123: =D123-G123 -> 5 | F123: =E123/D123*100% -> 83% | G123: 1 | H123: =G123/D123*100% -> 17%
B124: МБОУ Ромодановская СОШ | C124: 6 | D124: 5 | E124: =D124-G124 -> 1 | F124: =E124/D124*100% -> 20% | G124: 4 | H124: =G124/D124*100% -> 80%
B125: МБОУ Ромодановская СОШ | C125: 7 | D125: 2 | E125: 0 | F125: 0% | G125: 2 | H125: 100%
B126: МБОУ Ромодановская СОШ | C126: 8 | D126: 4 | E126: 0 | F126: 0% | G126: 4 | H126: 100%
B127: МБОУ Ромодановская СОШ | C127: 9 | D127: 6 | E127: 3 | F127: 50% | G127: 3 | H127: 50%
B128: МБОУ Ромодановская СОШ | C128: ИТОГО | D128: =SUM(D123:D127) -> 23 | E128: 9 | F128: 39% | G128: =SUM(G123:G127) -> 14 | H128: 61%
A130: № | B130: Наименование школы | C130: Класс | D130: Кол-во учащихся | E130: Выше баз.ур. ("4/5") | F130: Доля, % | G130: Баз.ур ("3") | H130: Доля, %
A131: 17 | B131: МБОУ "Сахаровская ООШ" | C131: 5 | D131: 13 | E131: =D131-G131 -> 7 | F131: =E131/D131*100% -> 54% | G131: 6 | H131: =G131/D131*100% -> 46%
B132: МБОУ "Сахаровская ООШ" | C132: 6 | D132: 6 | E132: =D132-G132 -> 4 | F132: =E132/D132*100% -> 67% | G132: 2 | H132: =G132/D132*100% -> 33%
B133: МБОУ "Сахаровская ООШ" | C133: 7 | D133: 4 | E133: 1 | F133: 25% | G133: 3 | H133: 75%
B134: МБОУ "Сахаровская ООШ" | C134: 8 | D134: 10 | E134: 6 | F134: 60% | G134: 4 | H134: 40%
B135: МБОУ "Сахаровская ООШ" | C135: 9 | D135: 5 | E135: 1 | F135: 20% | G135: 4 | H135: 80%
B136: МБОУ "Сахаровская ООШ" | C136: ИТОГО | D136: =SUM(D131:D135) -> 38 | E136: 19 | F136: 50% | G136: =SUM(G131:G135) -> 19 | H136: 50%
A138: № | B138: Наименование школы | C138: Класс | D138: Кол-во учащихся | E138: Выше баз.ур. ("4/5") | F138: Доля, % | G138: Баз.ур ("3") | H138: Доля, %
A139: 18 | B139: МБОУ Среднетиганская СОШ | C139: 5 | D139: 6 | E139: =D139-G139 -> 3 | F139: =E139/D139*100% -> 50% | G139: 3 | H139: =G139/D139*100% -> 50%
B140: МБОУ Среднетиганская СОШ | C140: 6 | D140: 8 | E140: =D140-G140 -> 2 | F140: =E140/D140*100% -> 25% | G140: 6 | H140: =G140/D140*100% -> 75%
B141: МБОУ Среднетиганская СОШ | C141: 7 | D141: 5 | E141: 2 | F141: 40% | G141: 3 | H141: 60%
B142: МБОУ Среднетиганская СОШ | C142: 8 | D142: 4 | E142: 1 | F142: 25% | G142: 3 | H142: 75%
B143: МБОУ Среднетиганская СОШ | C143: 9 | D143: 8 | E143: 6 | F143: 75% | G143: 2 | H143: 25%
B144: МБОУ Среднетиганская СОШ | C144: ИТОГО | D144: =SUM(D139:D143) -> 31 | E144: 14 | F144: 45% | G144: =SUM(G139:G143) -> 17 | H144: 55%
A146: № | B146: Наименование школы | C146: Класс | D146: Кол-во учащихся | E146: Выше баз.ур. ("4/5") | F146: Доля, % | G146: Баз.ур ("3") | H146: Доля, %
A147: 19 | B147: МБОУ Степношенталинская ООШ | C147: 5 | D147: 3 | E147: =D147-G147 -> 3 | F147: =E147/D147*100% -> 100% | G147: 0 | H147: =G147/D147*100% -> 0%
B148: МБОУ Степношенталинская ООШ | C148: 6 | D148: 0 | E148: =D148-G148 -> 0 | F148: 0% | G148: 0 | H148: 0%
B149: МБОУ Степношенталинская ООШ | C149: 7 | D149: 2 | E149: 1 | F149: =E149/D149*100% -> 50% | G149: 1 | H149: =G149/D149*100% -> 50%
B150: МБОУ Степношенталинская ООШ | C150: 8 | D150: 5 | E150: 3 | F150: 60% | G150: 2 | H150: 40%
B151: МБОУ Степношенталинская ООШ | C151: 9 | D151: 2 | E151: 2 | F151: 100% | G151: 0 | H151: 0%
B152: МБОУ Степношенталинская ООШ | C152: ИТОГО | D152: =SUM(D147:D151) -> 12 | E152: 9 | F152: 75% | G152: =SUM(G147:G151) -> 3 | H152: 25%
A154: № | B154: Наименование школы | C154: Класс | D154: Кол-во учащихся | E154: Выше баз.ур. ("4/5") | F154: Доля, % | G154: Баз.ур ("3") | H154: Доля, %
A155: 20 | B155: МБОУ "Чувашскомайнская ООШ" | C155: 5 | D155: 4 | E155: =D155-G155 -> 2 | F155: =E155/D155*100% -> 50% | G155: 2 | H155: =G155/D155*100% -> 50%
B156: МБОУ "Чувашскомайнская ООШ" | C156: 6 | D156: 6 | E156: =D156-G156 -> 2 | F156: 0% | G156: 4 | H156: 0%
B157: МБОУ "Чувашскомайнская ООШ" | C157: 7 | D157: 8 | E157: 2 | F157: =E157/D157*100% -> 25% | G157: 6 | H157: =G157/D157*100% -> 75%
B158: МБОУ "Чувашскомайнская ООШ" | C158: 8 | D158: 4 | E158: 2 | F158: 50% | G158: 2 | H158: 50%
B159: МБОУ "Чувашскомайнская ООШ" | C159: 9 | D159: 3 | E159: 2 | F159: 67% | G159: 1 | H159: 33%
B160: МБОУ "Чувашскомайнская ООШ" | C160: ИТОГО | D160: =SUM(D155:D159) -> 25 | E160: 10 | F160: 40% | G160: =SUM(G155:G159) -> 15 | H160: 60%
A162: № | B162: Наименование школы | C162: Класс | D162: Кол-во учащихся | E162: Выше баз.ур. ("4/5") | F162: Доля, % | G162: Баз.ур ("3") | H162: Доля, %
A163: 21 | B163: МБОУ "Шаминская ООШ" | C163: 5 | D163: 2 | E163: =D163-G163 -> 1 | F163: =E163/D163*100% -> 50% | G163: 1 | H163: =G163/D163*100% -> 50%
B164: МБОУ "Шаминская ООШ" | C164: 6 | D164: 2 | E164: =D164-G164 -> 1 | F164: 0% | G164: 1 | H164: 0%
B165: МБОУ "Шаминская ООШ" | C165: 7 | D165: 4 | E165: 1 | F165: =E165/D165*100% -> 25% | G165: 3 | H165: =G165/D165*100% -> 75%
B166: МБОУ "Шаминская ООШ" | C166: 8 | D166: 5 | E166: 3 | F166: 60% | G166: 2 | H166: 40%
B167: МБОУ "Шаминская ООШ" | C167: 9 | D167: 5 | E167: 0 | F167: 0% | G167: 5 | H167: 100%
B168: МБОУ "Шаминская ООШ" | C168: ИТОГО | D168: =SUM(D163:D167) -> 18 | E168: 6 | F168: 33% | G168: =SUM(G163:G167) -> 12 | H168: 67%
A170: № | B170: Наименование школы | C170: Класс | D170: Кол-во учащихся | E170: Выше баз.ур. ("4/5") | F170: Доля, % | G170: Баз.ур ("3") | H170: Доля, %
A171: 22 | B171: МБОУ "Ялкынская ООШ" | C171: 5 | D171: 3 | E171: =D171-G171 -> 2 | F171: =E171/D171*100% -> 67% | G171: 1 | H171: =G171/D171*100% -> 33%
B172: МБОУ "Ялкынская ООШ" | C172: 6 | D172: 3 | E172: =D172-G172 -> 1 | F172: 0% | G172: 2 | H172: 0%
B173: МБОУ "Ялкынская ООШ" | C173: 7 | D173: 2 | E173: 1 | F173: =E173/D173*100% -> 50% | G173: 1 | H173: =G173/D173*100% -> 50%
B174: МБОУ "Ялкынская ООШ" | C174: 8 | D174: 5 | E174: 2 | F174: 40% | G174: 3 | H174: 60%
B175: МБОУ "Ялкынская ООШ" | C175: 9 | D175: 4 | E175: 2 | F175: 50% | G175: 2 | H175: 50%
B176: МБОУ "Ялкынская ООШ" | C176: ИТОГО | D176: =SUM(D171:D175) -> 17 | E176: 8 | F176: 47% | G176: =SUM(G171:G175) -> 9 | H176: 53%
B178: По району: | D178: =SUM(D8+D16+D24+D32+D40+D48+D56+D64+D72+D80+D88+D96+D104+D112+D120+D128+D136+D144+D152+D160+D168+D176) -> 1391 | E178: =SUM(E8+E16+E24+E32+E40+E48+E56+E64+E72+E80+E88+E96+E104+E112+E120+E128+E136+E144+E152+E160+E168+E176) -> 727 | F178: =E178/D178*100% -> 52% | G178: 664 | H178: =G178/D178*100% -> 48%
B180: Заместитель начальника по учебно-методической работе МКУ "Отдел образования Алексеевского муниципального района Республики Татарстан" | F180: В.В.Егорова

Sheet 2-4
A1: Достижение обучающимися планируемых предметных результатов освоения образовательной программы начального общего образования по итогам 2020-2021 учебного года
A2: № | B2: Наименование школы | C2: Класс | D2: Кол-во учащихся | E2: Выше баз.ур. ("4/5") | F2: Доля, % | G2: Баз.ур ("3") | H2: Доля, %
A3: 1 | B3: МБОУ Алексеевская СОШ №1 | C3: 2 | D3: 94 | E3: =D3-G3 -> 71 | F3: =E3/D3*100% -> 76% | G3: 23 | H3: =G3/D3*100% -> 24%
B4: МБОУ Алексеевская СОШ №1 | C4: 3 | D4: 63 | E4: =D4-G4 -> 46 | F4: =E4/D4*100% -> 73% | G4: 17 | H4: =G4/D4*100% -> 27%
B5: МБОУ Алексеевская СОШ №1 | C5: 4 | D5: 60 | E5: 32 | F5: 53% | G5: 28 | H5: 47%
B6: МБОУ Алексеевская СОШ №1 | C6: ИТОГО | D6: =SUM(D3:D5) -> 217 | E6: =SUM(E3:E5) -> 149 | F6: 69% | G6: 68 | H6: 31%
A8: № | B8: Наименование школы | C8: Класс | D8: Кол-во учащихся | E8: Выше баз.ур. ("4/5") | F8: Доля, % | G8: Баз.ур ("3") | H8: Доля, %
A9: 2 | B9: МБОУ Алексеевская СОШ №2 | C9: 2 | D9: 83 | E9: =D9-G9 -> 65 | F9: =E9/D9*100% -> 78% | G9: 18 | H9: =G9/D9*100% -> 22%
B10: МБОУ Алексеевская СОШ №2 | C10: 3 | D10: 66 | E10: =D10-G10 -> 53 | F10: =E10/D10*100% -> 80% | G10: 13 | H10: =G10/D10*100% -> 20%
B11: МБОУ Алексеевская СОШ №2 | C11: 4 | D11: 75 | E11: 53 | F11: 71% | G11: 22 | H11: 29%
B12: МБОУ Алексеевская СОШ №2 | C12: ИТОГО | D12: =SUM(D9:D11) -> 224 | E12: =SUM(E9:E11) -> 171 | F12: 76% | G12: =SUM(G9:G11) -> 53 | H12: 24%
A14: № | B14: Наименование школы | C14: Класс | D14: Кол-во учащихся | E14: Выше баз.ур. ("4/5") | F14: Доля, % | G14: Баз.ур ("3") | H14: Доля, %
A15: 3 | B15: МБОУ АСОШ №3 им.Г.С.Боровикова | C15: 2 | D15: 34 | E15: =D15-G15 -> 30 | F15: =E15/D15*100% -> 88% | G15: 4 | H15: =G15/D15*100% -> 12%
B16: МБОУ АСОШ №3 им.Г.С.Боровикова | C16: 3 | D16: 41 | E16: =D16-G16 -> 32 | F16: =E16/D16*100% -> 78% | G16: 9 | H16: =G16/D16*100% -> 22%
B17: МБОУ АСОШ №3 им.Г.С.Боровикова | C17: 4 | D17: 52 | E17: 38 | F17: 73% | G17: 14 | H17: 27%
B18: МБОУ АСОШ №3 им.Г.С.Боровикова | C18: ИТОГО | D18: =SUM(D15:D17) -> 127 | E18: =SUM(E15:E17) -> 100 | F18: 79% | G18: =SUM(G15:G17) -> 27 | H18: 21%
A20: № | B20: Наименование школы | C20: Класс | D20: Кол-во учащихся | E20: Выше баз.ур. ("4/5") | F20: Доля, % | G20: Баз.ур ("3") | H20: Доля, %
A21: 4 | B21: МБОУ "Билярская СОШ" | C21: 2 | D21: 28 | E21: =D21-G21 -> 18 | F21: =E21/D21*100% -> 64% | G21: 10 | H21: =G21/D21*100% -> 36%
B22: МБОУ "Билярская СОШ" | C22: 3 | D22: 36 | E22: =D22-G22 -> 19 | F22: =E22/D22*100% -> 53% | G22: 17 | H22: =G22/D22*100% -> 47%
B23: МБОУ "Билярская СОШ" | C23: 4 | D23: 24 | E23: 12 | F23: 50% | G23: 12 | H23: 50%
B24: МБОУ "Билярская СОШ" | C24: ИТОГО | D24: =SUM(D21:D23) -> 88 | E24: =SUM(E21:E23) -> 49 | F24: 56% | G24: =SUM(G21:G23) -> 39 | H24: 44%
A26: № | B26: Наименование школы | C26: Класс | D26: Кол-во учащихся | E26: Выше баз.ур. ("4/5") | F26: Доля, % | G26: Баз.ур ("3") | H26: Доля, %
A27: 5 | B27: МБОУ Большеполянская ООШ | C27: 2 | D27: 7 | E27: =D27-G27 -> 5 | F27: =E27/D27*100% -> 71% | G27: 2 | H27: =G27/D27*100% -> 29%
B28: МБОУ Большеполянская ООШ | C28: 3 | D28: 7 | E28: =D28-G28 -> 5 | F28: =E28/D28*100% -> 71% | G28: 2 | H28: =G28/D28*100% -> 29%
B29: МБОУ Большеполянская ООШ | C29: 4 | D29: 4 | E29: 3 | F29: 75% | G29: 1 | H29: 25%
B30: МБОУ Большеполянская ООШ | C30: ИТОГО | D30: =SUM(D27:D29) -> 18 | E30: =SUM(E27:E29) -> 13 | F30: 72% | G30: =SUM(G27:G29) -> 5 | H30: 28%
A32: № | B32: Наименование школы | C32: Класс | D32: Кол-во учащихся | E32: Выше баз.ур. ("4/5") | F32: Доля, % | G32: Баз.ур ("3") | H32: Доля, %
A33: 6 | B33: МБОУ "Большетиганская ООШ" | C33: 2 | D33: 4 | E33: =D33-G33 -> 3 | F33: =E33/D33*100% -> 75% | G33: 1 | H33: =G33/D33*100% -> 25%
B34: МБОУ "Большетиганская ООШ" | C34: 3 | D34: 9 | E34: =D34-G34 -> 3 | F34: =E34/D34*100% -> 33% | G34: 6 | H34: =G34/D34*100% -> 67%
B35: МБОУ "Большетиганская ООШ" | C35: 4 | D35: 2 | E35: 1 | F35: 50% | G35: 1 | H35: 50%
B36: МБОУ "Большетиганская ООШ" | C36: ИТОГО | D36: =SUM(D33:D35) -> 15 | E36: =SUM(E33:E35) -> 7 | F36: 47% | G36: =SUM(G33:G35) -> 8 | H36: 53%
A38: № | B38: Наименование школы | C38: Класс | D38: Кол-во учащихся | E38: Выше баз.ур. ("4/5") | F38: Доля, % | G38: Баз.ур ("3") | H38: Доля, %
A39: 7 | B39: МБОУ "Ерыклинская ООШ" | C39: 2 | D39: 4 | E39: =D39-G39 -> 2 | F39: =E39/D39*100% -> 50% | G39: 2 | H39: =G39/D39*100% -> 50%
B40: МБОУ "Ерыклинская ООШ" | C40: 3 | D40: 3 | E40: =D40-G40 -> 2 | F40: =E40/D40*100% -> 67% | G40: 1 | H40: =G40/D40*100% -> 33%
B41: МБОУ "Ерыклинская ООШ" | C41: 4 | D41: 7 | E41: 3 | F41: 43% | G41: 4 | H41: 57%
B42: МБОУ "Ерыклинская ООШ" | C42: ИТОГО | D42: =SUM(D39:D41) -> 14 | E42: =SUM(E39:E41) -> 7 | F42: 50% | G42: =SUM(G39:G41) -> 7 | H42: 50%
A44: № | B44: Наименование школы | C44: Класс | D44: Кол-во учащихся | E44: Выше баз.ур. ("4/5") | F44: Доля, % | G44: Баз.ур ("3") | H44: Доля, %
A45: 8 | B45: МБОУ Куркульская СОШ | C45: 2 | D45: 2 | E45: =D45-G45 -> 0 | F45: =E45/D45*100% -> 0% | G45: 2 | H45: =G45/D45*100% -> 100%
B46: МБОУ Куркульская СОШ | C46: 3 | D46: 4 | E46: =D46-G46 -> 1 | F46: =E46/D46*100% -> 25% | G46: 3 | H46: =G46/D46*100% -> 75%
B47: МБОУ Куркульская СОШ | C47: 4 | D47: 3 | E47: 0 | F47: 0% | G47: 3 | H47: 100%
B48: МБОУ Куркульская СОШ | C48: ИТОГО | D48: =SUM(D45:D47) -> 9 | E48: =SUM(E45:E47) -> 1 | F48: 11% | G48: =SUM(G45:G47) -> 8 | H48: 89%
A50: № | B50: Наименование школы | C50: Класс | D50: Кол-во учащихся | E50: Выше баз.ур. ("4/5") | F50: Доля, % | G50: Баз.ур ("3") | H50: Доля, %
A51: 9 | B51: МБОУ "Краснобаранская ООШ" | C51: 2 | D51: 1 | E51: =D51-G51 -> 1 | F51: =E51/D51*100% -> 100% | G51: 0 | H51: =G51/D51*100% -> 0%
B52: МБОУ "Краснобаранская ООШ" | C52: 3 | D52: 1 | E52: =D52-G52 -> 1 | F52: =E52/D52*100% -> 100% | G52: 0 | H52: =G52/D52*100% -> 0%
B53: МБОУ "Краснобаранская ООШ" | C53: 4 | D53: 4 | E53: 2 | F53: 50% | G53: 2 | H53: 50%
B54: МБОУ "Краснобаранская ООШ" | C54: ИТОГО | D54: =SUM(D51:D53) -> 6 | E54: =SUM(E51:E53) -> 4 | F54: 67% | G54: =SUM(G51:G53) -> 2 | H54: 33%
A56: № | B56: Наименование школы | C56: Класс | D56: Кол-во учащихся | E56: Выше баз.ур. ("4/5") | F56: Доля, % | G56: Баз.ур ("3") | H56: Доля, %
A57: 10 | B57: МБОУ "Лебединская ООШ" | C57: 2 | D57: 8 | E57: =D57-G57 -> 3 | F57: =E57/D57*100% -> 38% | G57: 5 | H57: =G57/D57*100% -> 63%
B58: МБОУ "Лебединская ООШ" | C58: 3 | D58: 4 | E58: =D58-G58 -> 3 | F58: =E58/D58*100% -> 75% | G58: 1 | H58: =G58/D58*100% -> 25%
B59: МБОУ "Лебединская ООШ" | C59: 4 | D59: 8 | E59: 3 | F59: 38% | G59: 5 | H59: 63%
B60: МБОУ "Лебединская ООШ" | C60: ИТОГО | D60: =SUM(D57:D59) -> 20 | E60: =SUM(E57:E59) -> 9 | F60: 45% | G60: =SUM(G57:G59) -> 11 | H60: 55%
A62: № | B62: Наименование школы | C62: Класс | D62: Кол-во учащихся | E62: Выше баз.ур. ("4/5") | F62: Доля, % | G62: Баз.ур ("3") | H62: Доля, %
A63: 11 | B63: МБОУ "Левашевская ООШ" | C63: 2 | D63: 4 | E63: =D63-G63 -> 4 | F63: =E63/D63*100% -> 100% | G63: 0 | H63: =G63/D63*100% -> 0%
B64: МБОУ "Левашевская ООШ" | C64: 3 | D64: 5 | E64: =D64-G64 -> 4 | F64: =E64/D64*100% -> 80% | G64: 1 | H64: =G64/D64*100% -> 20%
B65: МБОУ "Левашевская ООШ" | C65: 4 | D65: 9 | E65: 5 | F65: 56% | G65: 4 | H65: 44%
B66: МБОУ "Левашевская ООШ" | C66: ИТОГО | D66: =SUM(D63:D65) -> 18 | E66: =SUM(E63:E65) -> 13 | F66: 72% | G66: =SUM(G63:G65) -> 5 | H66: 28%
A68: № | B68: Наименование школы | C68: Класс | D68: Кол-во учащихся | E68: Выше баз.ур. ("4/5") | F68: Доля, % | G68: Баз.ур ("3") | H68: Доля, %
A69: 12 | B69: МБОУ Мокрокурналинская СОШ | C69: 2 | D69: 10 | E69: =D69-G69 -> 7 | F69: =E69/D69*100% -> 70% | G69: 3 | H69: =G69/D69*100% -> 30%
B70: МБОУ Мокрокурналинская СОШ | C70: 3 | D70: 9 | E70: =D70-G70 -> 5 | F70: =E70/D70*100% -> 56% | G70: 4 | H70: =G70/D70*100% -> 44%
B71: МБОУ Мокрокурналинская СОШ | C71: 4 | D71: 6 | E71: 3 | F71: 50% | G71: 3 | H71: 50%
B72: МБОУ Мокрокурналинская СОШ | C72: ИТОГО | D72: =SUM(D69:D71) -> 25 | E72: =SUM(E69:E71) -> 15 | F72: 60% | G72: =SUM(G69:G71) -> 10 | H72: 40%
A74: № | B74: Наименование школы | C74: Класс | D74: Кол-во учащихся | E74: Выше баз.ур. ("4/5") | F74: Доля, % | G74: Баз.ур ("3") | H74: Доля, %
A75: 13 | B75: МБОУ Подлесношенталинская ООШ | C75: 2 | D75: 2 | E75: =D75-G75 -> 1 | F75: =E75/D75*100% -> 50% | G75: 1 | H75: =G75/D75*100% -> 50%
B76: МБОУ Подлесношенталинская ООШ | C76: 3 | D76: 1 | E76: =D76-G76 -> 1 | F76: =E76/D76*100% -> 100% | G76: 0 | H76: =G76/D76*100% -> 0%
B77: МБОУ Подлесношенталинская ООШ | C77: 4 | D77: 1 | E77: 0 | F77: 0% | G77: 1 | H77: 100%
B78: МБОУ Подлесношенталинская ООШ | C78: ИТОГО | D78: =SUM(D75:D77) -> 4 | E78: =SUM(E75:E77) -> 2 | F78: 50% | G78: =SUM(G75:G77) -> 2 | H78: 50%
A81: № | B81: Наименование школы | C81: Класс | D81: Кол-во учащихся | E81: Выше баз.ур. ("4/5") | F81: Доля, % | G81: Баз.ур ("3") | H81: Доля, %
A82: 14 | B82: МБОУ Реченская ООШ | C82: 2 | D82: 4 | E82: =D82-G82 -> 2 | F82: =E82/D82*100% -> 50% | G82: 2 | H82: =G82/D82*100% -> 50%
B83: МБОУ Реченская ООШ | C83: 3 | D83: 3 | E83: =D83-G83 -> 2 | F83: =E83/D83*100% -> 67% | G83: 1 | H83: =G83/D83*100% -> 33%
B84: МБОУ Реченская ООШ | C84: 4 | D84: 3 | E84: 1 | F84: 33% | G84: 2 | H84: 67%
B85: МБОУ Реченская ООШ | C85: ИТОГО | D85: =SUM(D82:D84) -> 10 | E85: =SUM(E82:E84) -> 5 | F85: 50% | G85: =SUM(G82:G84) -> 5 | H85: 50%
A87: № | B87: Наименование школы | C87: Класс | D87: Кол-во учащихся | E87: Выше баз.ур. ("4/5") | F87: Доля, % | G87: Баз.ур ("3") | H87: Доля, %
A88: 15 | B88: МБОУ Родниковская СОШ | C88: 2 | D88: 5 | E88: =D88-G88 -> 3 | F88: =E88/D88*100% -> 60% | G88: 2 | H88: =G88/D88*100% -> 40%
B89: МБОУ Родниковская СОШ | C89: 3 | D89: 0 | E89: =D89-G89 -> 0 | F89: 0% | G89: 0 | H89: 0%
B90: МБОУ Родниковская СОШ | C90: 4 | D90: 9 | E90: 4 | F90: =E90/D90*100% -> 44% | G90: 5 | H90: =G90/D90*100% -> 56%
B91: МБОУ Родниковская СОШ | C91: ИТОГО | D91: =SUM(D88:D90) -> 14 | E91: =SUM(E88:E90) -> 7 | F91: 50% | G91: =SUM(G88:G90) -> 7 | H91: 50%
A93: № | B93: Наименование школы | C93: Класс | D93: Кол-во учащихся | E93: Выше баз.ур. ("4/5") | F93: Доля, % | G93: Баз.ур ("3") | H93: Доля, %
A94: 16 | B94: МБОУ Ромодановская СОШ | C94: 2 | D94: 5 | E94: =D94-G94 -> 3 | F94: =E94/D94*100% -> 60% | G94: 2 | H94: =G94/D94*100% -> 40%
B95: МБОУ Ромодановская СОШ | C95: 3 | D95: 3 | E95: =D95-G95 -> 1 | F95: =E95/D95*100% -> 33% | G95: 2 | H95: =G95/D95*100% -> 67%
B96: МБОУ Ромодановская СОШ | C96: 4 | D96: 3 | E96: 1 | F96: 33% | G96: 2 | H96: 67%
B97: МБОУ Ромодановская СОШ | C97: ИТОГО | D97: =SUM(D94:D96) -> 11 | E97: =SUM(E94:E96) -> 5 | F97: 45% | G97: =SUM(G94:G96) -> 6 | H97: 55%
A99: № | B99: Наименование школы | C99: Класс | D99: Кол-во учащихся | E99: Выше баз.ур. ("4/5") | F99: Доля, % | G99: Баз.ур ("3") | H99: Доля, %
A100: 17 | B100: МБОУ "Сахаровская ООШ" | C100: 2 | D100: 6 | E100: =D100-G100 -> 3 | F100: =E100/D100*100% -> 50% | G100: 3 | H100: =G100/D100*100% -> 50%
B101: МБОУ "Сахаровская ООШ" | C101: 3 | D101: 16 | E101: =D101-G101 -> 12 | F101: =E101/D101*100% -> 75% | G101: 4 | H101: =G101/D101*100% -> 25%
B102: МБОУ "Сахаровская ООШ" | C102: 4 | D102: 6 | E102: 3 | F102: 50% | G102: 3 | H102: 50%
B103: МБОУ "Сахаровская ООШ" | C103: ИТОГО | D103: =SUM(D100:D102) -> 28 | E103: =SUM(E100:E102) -> 18 | F103: 64% | G103: =SUM(G100:G102) -> 10 | H103: 36%
A105: № | B105: Наименование школы | C105: Класс | D105: Кол-во учащихся | E105: Выше баз.ур. ("4/5") | F105: Доля, % | G105: Баз.ур ("3") | H105: Доля, %
A106: 18 | B106: МБОУ Среднетиганская СОШ | C106: 2 | D106: 6 | E106: =D106-G106 -> 5 | F106: =E106/D106*100% -> 83% | G106: 1 | H106: =G106/D106*100% -> 17%
B107: МБОУ Среднетиганская СОШ | C107: 3 | D107: 1 | E107: =D107-G107 -> 0 | F107: =E107/D107*100% -> 0% | G107: 1 | H107: =G107/D107*100% -> 100%
B108: МБОУ Среднетиганская СОШ | C108: 4 | D108: 4 | E108: 3 | F108: 75% | G108: 1 | H108: 25%
B109: МБОУ Среднетиганская СОШ | C109: ИТОГО | D109: =SUM(D106:D108) -> 11 | E109: =SUM(E106:E108) -> 8 | F109: 73% | G109: =SUM(G106:G108) -> 3 | H109: 27%
A111: № | B111: Наименование школы | C111: Класс | D111: Кол-во учащихся | E111: Выше баз.ур. ("4/5") | F111: Доля, % | G111: Баз.ур ("3") | H111: Доля, %
A112: 19 | B112: МБОУ Степношенталинская ООШ | C112: 2 | D112: 2 | E112: =D112-G112 -> 2 | F112: =E112/D112*100% -> 100% | G112: 0 | H112: =G112/D112*100% -> 0%
B113: МБОУ Степношенталинская ООШ | C113: 3 | D113: 3 | E113: =D113-G113 -> 2 | F113: =E113/D113*100% -> 67% | G113: 1 | H113: =G113/D113*100% -> 33%
B114: МБОУ Степношенталинская ООШ | C114: 4 | D114: 3 | E114: 3 | F114: 100% | G114: 0 | H114: 0%
B115: МБОУ Степношенталинская ООШ | C115: ИТОГО | D115: =SUM(D112:D114) -> 8 | E115: =SUM(E112:E114) -> 7 | F115: 88% | G115: =SUM(G112:G114) -> 1 | H115: 13%
A118: № | B118: Наименование школы | C118: Класс | D118: Кол-во учащихся | E118: Выше баз.ур. ("4/5") | F118: Доля, % | G118: Баз.ур ("3") | H118: Доля, %
A119: 20 | B119: МБОУ "Чувашскомайнская ООШ" | C119: 2 | D119: 6 | E119: =D119-G119 -> 3 | F119: =E119/D119*100% -> 50% | G119: 3 | H119: =G119/D119*100% -> 50%
B120: МБОУ "Чувашскомайнская ООШ" | C120: 3 | D120: 1 | E120: =D120-G120 -> 1 | F120: =E120/D120*100% -> 100% | G120: 0 | H120: =G120/D120*100% -> 0%
B121: МБОУ "Чувашскомайнская ООШ" | C121: 4 | D121: 5 | E121: 3 | F121: 60% | G121: 2 | H121: 40%
B122: МБОУ "Чувашскомайнская ООШ" | C122: ИТОГО | D122: =SUM(D119:D121) -> 12 | E122: =SUM(E119:E121) -> 7 | F122: 58% | G122: =SUM(G119:G121) -> 5 | H122: 42%
A124: № | B124: Наименование школы | C124: Класс | D124: Кол-во учащихся | E124: Выше баз.ур. ("4/5") | F124: Доля, % | G124: Баз.ур ("3") | H124: Доля, %
A125: 21 | B125: МБОУ "Шаминская ООШ" | C125: 2 | D125: 4 | E125: =D125-G125 -> 3 | F125: =E125/D125*100% -> 75% | G125: 1 | H125: =G125/D125*100% -> 25%
B126: МБОУ "Шаминская ООШ" | C126: 3 | D126: 4 | E126: =D126-G126 -> 1 | F126: =E126/D126*100% -> 25% | G126: 3 | H126: =G126/D126*100% -> 75%
B127: МБОУ "Шаминская ООШ" | C127: 4 | D127: 4 | E127: 2 | F127: 50% | G127: 2 | H127: 50%
B128: МБОУ "Шаминская ООШ" | C128: ИТОГО | D128: =SUM(D125:D127) -> 12 | E128: =SUM(E125:E127) -> 6 | F128: 50% | G128: =SUM(G125:G127) -> 6 | H128: 50%
A130: № | B130: Наименование школы | C130: Класс | D130: Кол-во учащихся | E130: Выше баз.ур. ("4/5") | F130: Доля, % | G130: Баз.ур ("3") | H130: Доля, %
A131: 22 | B131: МБОУ "Ялкынская ООШ" | C131: 2 | D131: 4 | E131: =D131-G131 -> 2 | F131: =E131/D131*100% -> 50% | G131: 2 | H131: =G131/D131*100% -> 50%
B132: МБОУ "Ялкынская ООШ" | C132: 3 | D132: 3 | E132: =D132-G132 -> 2 | F132: =E132/D132*100% -> 67% | G132: 1 | H132: =G132/D132*100% -> 33%
B133: МБОУ "Ялкынская ООШ" | C133: 4 | D133: 2 | E133: 2 | F133: 100% | G133: 0 | H133: 0%
B134: МБОУ "Ялкынская ООШ" | C134: ИТОГО | D134: =SUM(D131:D133) -> 9 | E134: =SUM(E131:E133) -> 6 | F134: 67% | G134: =SUM(G131:G133) -> 3 | H134: 33%
A136: № | B136: Наименование школы | C136: Класс | D136: Кол-во учащихся | E136: Выше баз.ур. ("4/5") | F136: Доля, % | G136: Баз.ур ("3") | H136: Доля, %
A137: 23 | B137: МБОУ "Алексеевская НОШ №4" | C137: 2 | D137: 26 | E137: =D137-G137 -> 24 | F137: =E137/D137*100% -> 92% | G137: 2 | H137: =G137/D137*100% -> 8%
B138: МБОУ "Алексеевская НОШ №4" | C138: 3 | D138: 21 | E138: =D138-G138 -> 11 | F138: =E138/D138*100% -> 52% | G138: 10 | H138: =G138/D138*100% -> 48%
B139: МБОУ "Алексеевская НОШ №4" | C139: 4 | D139: 20 | E139: 13 | F139: 65% | G139: 7 | H139: 35%
B140: МБОУ "Алексеевская НОШ №4" | C140: ИТОГО | D140: =SUM(D137:D139) -> 67 | E140: =SUM(E137:E139) -> 48 | F140: 72% | G140: =SUM(G137:G139) -> 19 | H140: 28%
B142: По району: | D142: =SUM(D6+D12+D18+D24+D30+D36+D42+D48+D54+D60+D66+D72+D78+D85+D91+D97+D103+D109+D122+D128+D134+D140) -> 959 | E142: =SUM(E6+E12+E18+E24+E30+E36+E42+E48+E54+E60+E66+E72+E78+E85+E91+E97+E103+E109+E122+E128+E134+E140) -> 650 | F142: =E142/D142*100% -> 68% | G142: 309 | H142: =G142/D142*100% -> 32%
B144: Заместитель начальника по учебно-методической работе МКУ "Отдел образования Алексеевского муниципального района Республики Татарстан" | F144: В.В.Егорова
